fUST/lending_fUST_20240605
["ID","MTS","AMOUNT","RATE_DAILY","PERIOD"]
[328597886,1717591843892,-640.49,0.00021917,2]
[328597889,1717591843902,-514.2,0.00021917,2]
[328597893,1717591843911,-996.64,0.00021917,2]
[328597896,1717591843920,-500.0,0.00021917,2]
[328597899,1717591843929,-500.0,0.00021917,2]
[328597902,1717591843938,-500.0,0.00021917,2]
[328597905,1717591843948,-500.0,0.00021917,2]
[328597907,1717591843958,-500.0,0.00021917,2]
[328597911,1717591843967,-500.0,0.00021917,2]
[328597913,1717591843976,-500.0,0.00021917,2]
[328597917,1717591843985,-500.0,0.00021917,2]
[328597919,1717591843994,-818.07,0.00021917,2]
[328597922,1717591844003,-633.25,0.00021917,2]
[328597925,1717591844013,-500.0,0.00021917,2]
[328597927,1717591844023,-949.89,0.00021917,2]
[328597931,1717591844034,-741.83,0.00021917,2]
[328597934,1717591844043,-500.0,0.00021917,2]
[328597936,1717591844052,-500.0,0.00021917,2]
[328597940,1717591844062,-500.0,0.00021917,2]
[328597943,1717591844072,-394.3147812,0.00021917,2]
[328597946,1717591844081,-967.35,0.00021917,2]
[328597949,1717591844091,-500.0,0.00021917,2]
[328597951,1717591844101,-500.0,0.00021917,2]
[328597954,1717591844110,-500.0,0.00021917,2]
[328597957,1717591844119,-500.0,0.00021917,2]
[328597961,1717591844129,-500.0,0.00021917,2]
[328597963,1717591844139,-500.0,0.00021917,2]
[328597965,1717591844148,-500.0,0.00021917,2]
[328597967,1717591844157,-560.88,0.00021917,2]
[328597969,1717591844166,-500.0,0.00021917,2]
[328597971,1717591844175,-500.0,0.00021917,2]
[328597973,1717591844183,-625.75,0.00021917,2]
[328597975,1717591844192,-500.0,0.00021917,2]
[328597977,1717591844201,-500.0,0.00021917,2]
[328597978,1717591844210,-500.0,0.00021917,2]
[328597980,1717591844219,-500.0,0.00021917,2]
[328597982,1717591844229,-500.0,0.00021917,2]
[328597984,1717591844238,-3297.49,0.00021917,2]
[328597986,1717591844247,-1108.58,0.00021917,2]
[328597988,1717591844256,-1747.69,0.00021917,2]
[328597990,1717591844265,-1732.48,0.00021917,2]
[328597992,1717591844274,-500.0,0.00021917,2]
[328597994,1717591844287,-641.83,0.00021917,2]
[328597996,1717591844296,-661.88,0.00021917,2]
[328597998,1717591844305,-500.0,0.00021917,2]
[328598000,1717591844318,-1847.84,0.00021917,2]
[328598002,1717591844327,-500.0,0.00021917,2]
[328598004,1717591844337,-500.0,0.00021917,2]
[328598006,1717591844347,-511.63,0.00021917,2]
[328598008,1717591844361,-843.33,0.00021917,2]
[328598010,1717591844370,-500.0,0.00021917,2]
[328598012,1717591844380,-702.92,0.00021917,2]
[328598014,1717591844390,-500.0,0.00021917,2]
[328598016,1717591844399,-4223.75,0.00021917,2]
[328598018,1717591844409,-500.0,0.00021917,2]
[328598020,1717591844418,-3794.83,0.00021917,2]
[328598022,1717591844430,-1457.18,0.00021917,2]
[328598024,1717591844440,-529.43,0.00021917,2]
[328598026,1717591844450,-854.9,0.00021917,2]
[328598028,1717591844459,-500.0,0.00021917,2]
[328598030,1717591844469,-2031.75,0.00021917,2]
[328598032,1717591844478,-649.57,0.00021917,2]
[328598034,1717591844488,-500.0,0.00021917,2]
[328598036,1717591844497,-500.0,0.00021917,2]
[328598038,1717591844507,-500.0,0.00021917,2]
[328598040,1717591844516,-500.0,0.00021917,2]
[328598042,1717591844526,-500.0,0.00021917,2]
[328598044,1717591844540,-500.0,0.00021917,2]
[328598046,1717591844549,-1119.6,0.00021917,2]
[328598048,1717591844558,-787.87,0.00021917,2]
[328598050,1717591844567,-500.0,0.00021917,2]
[328598052,1717591844577,-500.0,0.00021917,2]
[328598054,1717591844587,-500.0,0.00021917,2]
[328598056,1717591844595,-166.666666,0.00021918,2]
[328598058,1717591844604,-153.0,0.00021918,2]
[328598060,1717591844614,-1489.7493767,0.00021998,7]
[328598062,1717591844624,-9582.6962167,0.00021998,2]
[328598064,1717591844632,-11089.38713808,0.00021998,2]
[328598066,1717591844642,-203.35493614,0.00021998,2]
[328598068,1717591844651,-190.37021129,0.00021998,2]
[328598070,1717591844660,-3835.10514789,0.00021998,2]
[328598072,1717591844670,-2408.71611034,0.00021999,2]
[328598074,1717591844679,-126251.2505886,0.00022,2]
[328598076,1717591844689,-2500.0,0.00022,2]
[328598077,1717591844698,-1000.0,0.00022,5]
[328598079,1717591844708,-157.42350503,0.00022,3]
[328598081,1717591844717,-151.0,0.00022,2]
[328598084,1717591844726,-189.0,0.00022,2]
[328598085,1717591844736,-151.0,0.00022,2]
[328598087,1717591844746,-151.0,0.00022,2]
[328598089,1717591844755,-151.0,0.00022,2]
[328598092,1717591844765,-151.0,0.00022,2]
[328598093,1717591844775,-151.0,0.00022,2]
[328598095,1717591844786,-153.9499435,0.00022082,2]
[328598097,1717591844795,-624.16065565,0.000221,2]
[328598099,1717591844804,-175.3,0.000221,5]
[328598101,1717591844814,-500.0,0.00022191,2]
[328598103,1717591844823,-151.0,0.00022191,2]
[328598105,1717591844832,-500.0,0.00022191,2]
[328598107,1717591844842,-500.0,0.00022191,2]
[328598109,1717591844851,-500.0,0.00022191,2]
[328598111,1717591844861,-500.0,0.00022191,2]
[328598114,1717591844871,-500.0,0.00022191,2]
[328598116,1717591844880,-800.72,0.00022191,2]
[328598118,1717591844890,-500.0,0.00022191,2]
[328598120,1717591844899,-319.77809301,0.00022191,2]
[328598121,1717591844910,-500.0,0.00022191,2]
[328598123,1717591844919,-500.0,0.00022191,2]
[328598126,1717591844929,-883.33,0.00022191,2]
[328598128,1717591844939,-640.49,0.00022191,2]
[328598130,1717591844949,-514.2,0.00022191,2]
[328598131,1717591844958,-996.64,0.00022191,2]
[328598134,1717591844968,-500.0,0.00022191,2]
[328598136,1717591844977,-500.0,0.00022191,2]
[328598137,1717591844986,-500.0,0.00022191,2]
[328598140,1717591844996,-500.0,0.00022191,2]
[328598141,1717591845005,-500.0,0.00022191,2]
[328598143,1717591845014,-525.55601322,0.00022191,2]
[328598145,1717591845024,-500.0,0.00022191,2]
[328598148,1717591845034,-818.07,0.00022191,2]
[328598150,1717591845044,-633.25,0.00022191,2]
[328598152,1717591845053,-151.0,0.00022191,2]
[328598154,1717591845061,-949.89,0.00022191,2]
[328598156,1717591845070,-741.83,0.00022191,2]
[328598157,1717591845080,-500.0,0.00022191,2]
[328598159,1717591845090,-607.35424215,0.00022191,2]
[328598161,1717591845099,-500.0,0.00022191,2]
[328598164,1717591845109,-967.35,0.00022191,2]
[328598165,1717591845118,-500.0,0.00022191,2]
[328598167,1717591845127,-151.0,0.00022191,2]
[328598169,1717591845138,-500.0,0.00022191,2]
[328598172,1717591845148,-500.0,0.00022191,2]
[328598173,1717591845159,-500.0,0.00022191,2]
[328598175,1717591845169,-500.0,0.00022191,2]
[328598177,1717591845178,-151.0,0.00022191,2]
[328598179,1717591845188,-500.0,0.00022191,2]
[328598182,1717591845197,-500.0,0.00022191,2]
[328598184,1717591845206,-560.88,0.00022191,2]
[328598185,1717591845217,-500.0,0.00022191,2]
[328598187,1717591845226,-500.0,0.00022191,2]
[328598189,1717591845236,-625.75,0.00022191,2]
[328598192,1717591845245,-500.0,0.00022191,2]
[328598193,1717591845254,-500.0,0.00022191,2]
[328598195,1717591845263,-500.0,0.00022191,2]
[328598197,1717591845272,-500.0,0.00022191,2]
[328598199,1717591845283,-500.0,0.00022191,2]
[328598201,1717591845292,-151.0,0.00022191,2]
[328598204,1717591845301,-3297.49,0.00022191,2]
[328598206,1717591845310,-1108.58,0.00022191,2]
[328598208,1717591845320,-1747.69,0.00022191,2]
[328598223,1717591845458,-1732.48,0.00022191,2]
[328598225,1717591845467,-500.0,0.00022191,2]
[328598227,1717591845477,-641.83,0.00022191,2]
[328598229,1717591845486,-661.88,0.00022191,2]
[328598231,1717591845495,-307.36239082,0.00022191,2]
[328598233,1717591845504,-1847.84,0.00022191,2]
[328598235,1717591845514,-500.0,0.00022191,2]
[328598237,1717591845524,-500.0,0.00022191,2]
[328598239,1717591845535,-511.63,0.00022191,2]
[328598241,1717591845544,-843.33,0.00022191,2]
[328598243,1717591845554,-500.0,0.00022191,2]
[328598245,1717591845563,-702.92,0.00022191,2]
[328598247,1717591845572,-500.0,0.00022191,2]
[328598249,1717591845582,-4223.75,0.00022191,2]
[328598251,1717591845592,-565.96,0.00022191,2]
[328598253,1717591845601,-3794.83,0.00022191,2]
[328598255,1717591845611,-1457.18,0.00022191,2]
[328598257,1717591845621,-529.43,0.00022191,2]
[328598259,1717591845632,-854.9,0.00022191,2]
[328598261,1717591845641,-500.0,0.00022191,2]
[328598263,1717591845651,-2031.75,0.00022191,2]
[328598265,1717591845661,-649.57,0.00022191,2]
[328598267,1717591845670,-500.0,0.00022191,2]
[328598269,1717591845681,-500.0,0.00022191,2]
[328598271,1717591845691,-500.0,0.00022191,2]
[328598273,1717591845702,-500.0,0.00022191,2]
[328598275,1717591845711,-500.0,0.00022191,2]
[328598277,1717591845721,-500.0,0.00022191,2]
[328598279,1717591845730,-1119.6,0.00022191,2]
[328598281,1717591845740,-787.87,0.00022191,2]
[328598283,1717591845749,-500.0,0.00022191,2]
[328598285,1717591845759,-500.0,0.00022191,2]
[328598287,1717591845768,-500.0,0.00022191,2]
[328598289,1717591845777,-189.0,0.00022192,2]
[328598291,1717591845788,-621.33349912,0.00022291,2]
[328598293,1717591845797,-166.666666,0.00022431,2]
[328598295,1717591845807,-500.0,0.00022465,2]
[328598297,1717591845816,-220.565431,0.00022465,2]
[328598299,1717591845825,-500.0,0.00022465,2]
[328598301,1717591845835,-500.0,0.00022465,2]
[328598303,1717591845843,-500.0,0.00022465,2]
[328598305,1717591845853,-233.14014984,0.00022465,2]
[328598307,1717591845862,-500.0,0.00022465,2]
[328598309,1717591845871,-800.72,0.00022465,2]
[328598311,1717591845880,-291.59236848,0.00022465,2]
[328598313,1717591845890,-500.0,0.00022465,2]
[328598315,1717591845899,-500.0,0.00022465,2]
[328598317,1717591845909,-883.33,0.00022465,2]
[328598319,1717591845918,-640.49,0.00022465,2]
[328598321,1717591845927,-514.2,0.00022465,2]
[328598323,1717591845937,-996.64,0.00022465,2]
[328598325,1717591845946,-500.0,0.00022465,2]
[328598327,1717591845956,-500.0,0.00022465,2]
[328598329,1717591845964,-500.0,0.00022465,2]
[328598331,1717591845974,-500.0,0.00022465,2]
[328598333,1717591845984,-279.1227102,0.00022465,2]
[328598335,1717591845993,-500.0,0.00022465,2]
[328598337,1717591846003,-818.07,0.00022465,2]
[328598339,1717591846012,-633.25,0.00022465,2]
[328598341,1717591846022,-949.89,0.00022465,2]
[328598343,1717591846032,-741.83,0.00022465,2]
[328598345,1717591846042,-500.0,0.00022465,2]
[328598347,1717591846050,-500.0,0.00022465,2]
[328598349,1717591846060,-967.35,0.00022465,2]
[328598351,1717591846069,-500.0,0.00022465,2]
[328598353,1717591846078,-222.507008,0.00022465,2]
[328598355,1717591846088,-500.0,0.00022465,2]
[328598357,1717591846097,-500.0,0.00022465,2]
[328598359,1717591846106,-500.0,0.00022465,2]
[328598361,1717591846116,-500.0,0.00022465,2]
[328598363,1717591846125,-151.0,0.00022465,2]
[328598366,1717591846135,-500.0,0.00022465,2]
[328598369,1717591846144,-484.14163106,0.00022465,2]
[328598372,1717591846153,-560.88,0.00022465,2]
[328598375,1717591846163,-500.0,0.00022465,2]
[328598378,1717591846172,-500.0,0.00022465,2]
[328598380,1717591846181,-625.75,0.00022465,2]
[328598381,1717591846190,-500.0,0.00022465,2]
[328598382,1717591846200,-500.0,0.00022465,2]
[328598383,1717591846209,-500.0,0.00022465,2]
[328598384,1717591846219,-500.0,0.00022465,2]
[328598385,1717591846227,-500.0,0.00022465,2]
[328598386,1717591846237,-151.0,0.00022465,2]
[328598387,1717591846246,-151.0,0.00022465,2]
[328598388,1717591846255,-3297.49,0.00022465,2]
[328598389,1717591846264,-1108.58,0.00022465,2]
[328598390,1717591846274,-1747.69,0.00022465,2]
[328598392,1717591846285,-1732.48,0.00022465,2]
[328598394,1717591846295,-500.0,0.00022465,2]
[328598395,1717591846304,-641.83,0.00022465,2]
[328598398,1717591846313,-661.88,0.00022465,2]
[328598400,1717591846323,-1847.84,0.00022465,2]
[328598401,1717591846332,-500.0,0.00022465,2]
[328598403,1717591846341,-500.0,0.00022465,2]
[328598405,1717591846353,-511.63,0.00022465,2]
[328598407,1717591846362,-843.33,0.00022465,2]
[328598409,1717591846371,-500.0,0.00022465,2]
[328598411,1717591846380,-702.92,0.00022465,2]
[328598413,1717591846391,-500.0,0.00022465,2]
[328598415,1717591846400,-4223.75,0.00022465,2]
[328598417,1717591846409,-3794.83,0.00022465,2]
[328598419,1717591846418,-1457.18,0.00022465,2]
[328598421,1717591846429,-529.43,0.00022465,2]
[328598423,1717591846439,-854.9,0.00022465,2]
[328598425,1717591846448,-500.0,0.00022465,2]
[328598427,1717591846457,-2031.75,0.00022465,2]
[328598429,1717591846467,-649.57,0.00022465,2]
[328598431,1717591846476,-500.0,0.00022465,2]
[328598433,1717591846485,-500.0,0.00022465,2]
[328598435,1717591846495,-500.0,0.00022465,2]
[328598437,1717591846504,-500.0,0.00022465,2]
[328598439,1717591846514,-500.0,0.00022465,2]
[328598441,1717591846524,-500.0,0.00022465,2]
[328598443,1717591846536,-1119.6,0.00022465,2]
[328598444,1717591846545,-787.87,0.00022465,2]
[328598445,1717591846555,-500.0,0.00022465,2]
[328598446,1717591846564,-500.0,0.00022465,2]
[328598447,1717591846573,-500.0,0.00022465,2]
[328598449,1717591846582,-2381.61491501,0.000225,7]
[328598450,1717591846592,-31869.47514861,0.000225,2]
[328598451,1717591846601,-151.0,0.000225,2]
[328598452,1717591846610,-500.0,0.00022739,2]
[328598453,1717591846619,-500.0,0.00022739,2]
[328598454,1717591846628,-500.0,0.00022739,2]
[328598455,1717591846637,-500.0,0.00022739,2]
[328598457,1717591846646,-500.0,0.00022739,2]
[328598458,1717591846655,-800.72,0.00022739,2]
[328598459,1717591846665,-500.0,0.00022739,2]
[328598461,1717591846674,-500.0,0.00022739,2]
[328598462,1717591846684,-883.33,0.00022739,2]
[328598463,1717591846692,-640.49,0.00022739,2]
[328598464,1717591846702,-514.2,0.00022739,2]
[328598465,1717591846711,-996.64,0.00022739,2]
[328598466,1717591846720,-500.0,0.00022739,2]
[328598467,1717591846731,-500.0,0.00022739,2]
[328598468,1717591846740,-500.0,0.00022739,2]
[328598469,1717591846749,-500.0,0.00022739,2]
[328598470,1717591846759,-500.0,0.00022739,2]
[328598471,1717591846769,-818.07,0.00022739,2]
[328598472,1717591846778,-633.25,0.00022739,2]
[328598473,1717591846790,-949.89,0.00022739,2]
[328598474,1717591846803,-741.83,0.00022739,2]
[328598475,1717591846816,-500.0,0.00022739,2]
[328598476,1717591846829,-500.0,0.00022739,2]
[328598477,1717591846841,-967.35,0.00022739,2]
[328598478,1717591846854,-500.0,0.00022739,2]
[328598479,1717591846865,-258.84750302,0.00022739,2]
[328598480,1717591846875,-500.0,0.00022739,2]
[328598481,1717591846887,-500.0,0.00022739,2]
[328598482,1717591846899,-500.0,0.00022739,2]
[328598483,1717591846911,-339.3886155,0.00022739,2]
[328598484,1717591846924,-560.88,0.00022739,2]
[328598485,1717591846937,-500.0,0.00022739,2]
[328598486,1717591846949,-500.0,0.00022739,2]
[328598487,1717591846962,-625.75,0.00022739,2]
[328598488,1717591846973,-500.0,0.00022739,2]
[328598489,1717591846985,-500.0,0.00022739,2]
[328598490,1717591846999,-500.0,0.00022739,2]
[328598491,1717591847010,-500.0,0.00022739,2]
[328598492,1717591847022,-500.0,0.00022739,2]
[328598493,1717591847037,-151.0,0.00022739,2]
[328598494,1717591847048,-3297.49,0.00022739,2]
[328598495,1717591847060,-1108.58,0.00022739,2]
[328598496,1717591847071,-1747.69,0.00022739,2]
[328598497,1717591847082,-1732.48,0.00022739,2]
[328598498,1717591847093,-500.0,0.00022739,2]
[328598499,1717591847105,-641.83,0.00022739,2]
[328598500,1717591847116,-661.88,0.00022739,2]
[328598501,1717591847128,-1847.84,0.00022739,2]
[328598502,1717591847140,-500.0,0.00022739,2]
[328598503,1717591847150,-500.0,0.00022739,2]
[328598504,1717591847160,-511.63,0.00022739,2]
[328598505,1717591847170,-843.33,0.00022739,2]
[328598506,1717591847180,-500.0,0.00022739,2]
[328598507,1717591847191,-702.92,0.00022739,2]
[328598508,1717591847201,-155.60917777,0.00022739,2]
[328598509,1717591847214,-4223.75,0.00022739,2]
[328598510,1717591847225,-3794.83,0.00022739,2]
[328598511,1717591847237,-1457.18,0.00022739,2]
[328598512,1717591847249,-529.43,0.00022739,2]
[328598513,1717591847260,-854.9,0.00022739,2]
[328598514,1717591847273,-500.0,0.00022739,2]
[328598515,1717591847287,-2031.75,0.00022739,2]
[328598516,1717591847300,-649.57,0.00022739,2]
[328598517,1717591847312,-500.0,0.00022739,2]
[328598518,1717591847323,-500.0,0.00022739,2]
[328598519,1717591847334,-500.0,0.00022739,2]
[328598520,1717591847346,-500.0,0.00022739,2]
[328598521,1717591847357,-500.0,0.00022739,2]
[328598522,1717591847368,-500.0,0.00022739,2]
[328598523,1717591847379,-1119.6,0.00022739,2]
[328598524,1717591847391,-787.87,0.00022739,2]
[328598525,1717591847404,-500.0,0.00022739,2]
[328598526,1717591847416,-500.0,0.00022739,2]
[328598527,1717591847431,-175.3,0.0002281,5]
[328598528,1717591847441,-151.0,0.0002281,5]
[328598529,1717591847451,-166.666666,0.00022944,2]
[328598530,1717591847461,-995.30840592,0.0002295,2]
[328598531,1717591847474,-275.80967841,0.00023,2]
[328598532,1717591847486,-934.96730415,0.00023,2]
[328598533,1717591847498,-270.0,0.00023,2]
[328598534,1717591847510,-636.16491993,0.00023,15]
[328598535,1717591847521,-1000.0,0.00023,8]
[328598536,1717591847531,-500.0,0.00023013,2]
[328598537,1717591847542,-500.0,0.00023013,2]
[328598538,1717591847552,-500.0,0.00023013,2]
[328598539,1717591847562,-500.0,0.00023013,2]
[328598540,1717591847572,-500.0,0.00023013,2]
[328598541,1717591847583,-800.72,0.00023013,2]
[328598542,1717591847594,-500.0,0.00023013,2]
[328598543,1717591847605,-500.0,0.00023013,2]
[328598544,1717591847615,-883.33,0.00023013,2]
[328598545,1717591847627,-640.49,0.00023013,2]
[328598546,1717591847637,-514.2,0.00023013,2]
[328598547,1717591847647,-996.64,0.00023013,2]
[328598548,1717591847658,-500.0,0.00023013,2]
[328598549,1717591847669,-500.0,0.00023013,2]
[328598550,1717591847680,-500.0,0.00023013,2]
[328598551,1717591847690,-500.0,0.00023013,2]
[328598552,1717591847700,-500.0,0.00023013,2]
[328598553,1717591847711,-818.07,0.00023013,2]
[328598554,1717591847722,-633.25,0.00023013,2]
[328598555,1717591847732,-949.89,0.00023013,2]
[328598556,1717591847742,-741.83,0.00023013,2]
[328598557,1717591847752,-316.92828692,0.00023013,2]
[328598558,1717591847763,-500.0,0.00023013,2]
[328598559,1717591847774,-967.35,0.00023013,2]
[328598560,1717591847785,-500.0,0.00023013,2]
[328598561,1717591847796,-295.00241437,0.00023013,2]
[328598562,1717591847806,-500.0,0.00023013,2]
[328598563,1717591847817,-500.0,0.00023013,2]
[328598564,1717591847827,-560.88,0.00023013,2]
[328598565,1717591847839,-500.0,0.00023013,2]
[328598566,1717591847850,-536.43709076,0.00023013,2]
[328598567,1717591847861,-500.0,0.00023013,2]
[328598568,1717591847872,-625.75,0.00023013,2]
[328598569,1717591847884,-500.0,0.00023013,2]
[328598570,1717591847894,-500.0,0.00023013,2]
[328598571,1717591847906,-500.0,0.00023013,2]
[328598572,1717591847917,-500.0,0.00023013,2]
[328598573,1717591847927,-151.0,0.00023013,2]
[328598574,1717591847937,-3297.49,0.00023013,2]
[328598575,1717591847948,-1108.58,0.00023013,2]
[328598576,1717591847959,-1747.69,0.00023013,2]
[328598577,1717591847968,-1732.48,0.00023013,2]
[328598578,1717591847979,-500.0,0.00023013,2]
[328598579,1717591847989,-641.83,0.00023013,2]
[328598580,1717591847999,-661.88,0.00023013,2]
[328598581,1717591848010,-1847.84,0.00023013,2]
[328598582,1717591848020,-500.0,0.00023013,2]
[328598583,1717591848031,-500.0,0.00023013,2]
[328598584,1717591848042,-511.63,0.00023013,2]
[328598585,1717591848053,-843.33,0.00023013,2]
[328598586,1717591848064,-500.0,0.00023013,2]
[328598587,1717591848074,-702.92,0.00023013,2]
[328598588,1717591848086,-4223.75,0.00023013,2]
[328598589,1717591848096,-3794.83,0.00023013,2]
[328598590,1717591848107,-1457.18,0.00023013,2]
[328598591,1717591848119,-529.43,0.00023013,2]
[328598592,1717591848130,-854.9,0.00023013,2]
[328598593,1717591848141,-500.0,0.00023013,2]
[328598594,1717591848151,-2031.75,0.00023013,2]
[328598595,1717591848163,-649.57,0.00023013,2]
[328598596,1717591848173,-500.0,0.00023013,2]
[328598597,1717591848185,-500.0,0.00023013,2]
[328598598,1717591848196,-500.0,0.00023013,2]
[328598599,1717591848207,-500.0,0.00023013,2]
[328598600,1717591848218,-500.0,0.00023013,2]
[328598601,1717591848229,-500.0,0.00023013,2]
[328598602,1717591848241,-1119.6,0.00023013,2]
[328598603,1717591848252,-787.87,0.00023013,2]
[328598604,1717591848262,-500.0,0.00023013,2]
[328598605,1717591848272,-500.0,0.00023013,2]
[328598606,1717591848281,-189.0,0.00023014,2]
[328598607,1717591848401,-298.27459406,0.00023065,2]
[328598608,1717591848450,-153.0,0.00023178,2]
[328598609,1717591848461,-154.95351395,0.00023284,2]
[328598610,1717591848470,-187.69514185,0.00023284,2]
[328598611,1717591848479,-500.0,0.00023287,2]
[328598612,1717591848488,-500.0,0.00023287,2]
[328598613,1717591848497,-500.0,0.00023287,2]
[328598614,1717591848507,-500.0,0.00023287,2]
[328598615,1717591848515,-500.0,0.00023287,2]
[328598616,1717591848525,-800.72,0.00023287,2]
[328598617,1717591848535,-500.0,0.00023287,2]
[328598618,1717591848544,-500.0,0.00023287,2]
[328598619,1717591848553,-883.33,0.00023287,2]
[328598620,1717591848563,-640.49,0.00023287,2]
[328598621,1717591848572,-514.2,0.00023287,2]
[328598622,1717591848581,-996.64,0.00023287,2]
[328598623,1717591848590,-500.0,0.00023287,2]
[328598624,1717591848599,-500.0,0.00023287,2]
[328598625,1717591848609,-500.0,0.00023287,2]
[328598626,1717591848618,-500.0,0.00023287,2]
[328598627,1717591848627,-500.0,0.00023287,2]
[328598628,1717591848637,-818.07,0.00023287,2]
[328598629,1717591848645,-633.25,0.00023287,2]
[328598630,1717591848655,-949.89,0.00023287,2]
[328598631,1717591848664,-741.83,0.00023287,2]
[328598632,1717591848673,-500.0,0.00023287,2]
[328598633,1717591848682,-967.35,0.00023287,2]
[328598634,1717591848692,-500.0,0.00023287,2]
[328598635,1717591848701,-500.0,0.00023287,2]
[328598636,1717591848710,-500.0,0.00023287,2]
[328598637,1717591848719,-560.88,0.00023287,2]
[328598638,1717591848728,-500.0,0.00023287,2]
[328598639,1717591848738,-500.0,0.00023287,2]
[328598640,1717591848747,-625.75,0.00023287,2]
[328598641,1717591848756,-192.48,0.00023287,2]
[328598642,1717591848766,-500.0,0.00023287,2]
[328598643,1717591848775,-500.0,0.00023287,2]
[328598644,1717591848785,-500.0,0.00023287,2]
[328598645,1717591848794,-151.0,0.00023287,2]
[328598646,1717591848803,-3297.49,0.00023287,2]
[328598647,1717591848812,-151.0,0.00023287,2]
[328598648,1717591848821,-1108.58,0.00023287,2]
[328598649,1717591848830,-1747.69,0.00023287,2]
[328598650,1717591848839,-1732.48,0.00023287,2]
[328598651,1717591848848,-500.0,0.00023287,2]
[328598652,1717591848857,-641.83,0.00023287,2]
[328598653,1717591848867,-661.88,0.00023287,2]
[328598654,1717591848875,-1847.84,0.00023287,2]
[328598655,1717591848885,-500.0,0.00023287,2]
[328598656,1717591848895,-500.0,0.00023287,2]
[328598657,1717591848904,-511.63,0.00023287,2]
[328598658,1717591848913,-843.33,0.00023287,2]
[328598659,1717591848922,-500.0,0.00023287,2]
[328598660,1717591848932,-702.92,0.00023287,2]
[328598661,1717591848941,-4223.75,0.00023287,2]
[328598662,1717591848950,-3794.83,0.00023287,2]
[328598663,1717591848959,-1457.18,0.00023287,2]
[328598664,1717591848968,-529.43,0.00023287,2]
[328598665,1717591848977,-854.9,0.00023287,2]
[328598666,1717591848987,-500.0,0.00023287,2]
[328598667,1717591848996,-2031.75,0.00023287,2]
[328598668,1717591849005,-649.57,0.00023287,2]
[328598669,1717591849014,-500.0,0.00023287,2]
[328598670,1717591849024,-500.0,0.00023287,2]
[328598671,1717591849033,-500.0,0.00023287,2]
[328598672,1717591849044,-500.0,0.00023287,2]
[328598673,1717591849053,-500.0,0.00023287,2]
[328598674,1717591849063,-500.0,0.00023287,2]
[328598675,1717591849072,-1119.6,0.00023287,2]
[328598676,1717591849081,-787.87,0.00023287,2]
[328598677,1717591849091,-500.0,0.00023287,2]
[328598678,1717591849100,-620.06667496,0.00023406,2]
[328598679,1717591849109,-166.666666,0.00023456,2]
[328598680,1717591849118,-175.3,0.0002352,5]
[328598681,1717591849127,-151.0,0.0002352,5]
[328598682,1717591849137,-155.20119616,0.00023558,2]